bitfinex/quotes_BTCUSD_20260103
["timestamp","ask_amount","ask_price","bid_price","bid_amount"]
[1767417655829,0.01110716,90032.0,90026.0,0.0111079]
[1767417656048,0.01110728,90031.0,90026.0,0.0111079]
[1767417656213,0.01110716,90032.0,90026.0,0.0111079]
[1767417656420,0.01110728,90031.0,90026.0,0.0111079]
[1767417656957,0.0111074,90030.0,90025.0,0.01110802]
[1767417657382,0.01110716,90032.0,90025.0,0.01110802]
[1767417657532,0.01110716,90032.0,90026.0,0.0111079]
[1767417657935,0.01110728,90031.0,90025.0,0.01110802]
[1767417658163,0.01110728,90031.0,90024.0,0.01110814]
[1767417658164,0.0111074,90030.0,90024.0,0.01110814]
[1767417658380,0.01110728,90031.0,90025.0,0.06664809]
[1767417658554,0.01110728,90031.0,90026.0,0.0111079]
[1767417658967,0.01110728,90031.0,90023.0,0.01110827]
[1767417659161,0.01112,90033.0,90026.0,0.0111079]
[1767417659607,0.01110728,90031.0,90026.0,0.0111079]
[1767417660183,0.01110716,90032.0,90026.0,0.0111079]
[1767417660713,0.01110716,90032.0,90024.0,0.06664865]
[1767417660952,0.01110728,90031.0,90024.0,0.06664865]
[1767417661510,0.01110728,90031.0,90025.0,0.01110802]
[1767417661710,0.01110728,90031.0,90026.0,0.0111079]
[1767417663510,0.02222703,90033.0,90028.0,0.01110765]
[1767417663951,0.02222703,90033.0,90027.0,0.01110777]
[1767417664150,0.01110728,90031.0,90026.0,0.0111079]
[1767417664450,0.07776257,90033.0,90027.0,0.01110777]
[1767417664900,0.01110716,90032.0,90027.0,0.01110777]
[1767417665096,0.01110728,90031.0,90026.0,0.0111079]
[1767417666102,0.01110716,90032.0,90026.0,0.0111079]
[1767417666591,0.01110728,90031.0,90023.0,0.01110827]
[1767417666862,0.01110716,90032.0,90024.0,0.05554074]
[1767417667009,0.01112,90033.0,90024.0,0.01110814]
[1767417667233,0.01110716,90032.0,90026.0,0.0111079]
[1767417667432,0.01110716,90032.0,90025.0,0.01110802]
[1767417667672,0.0111074,90030.0,90025.0,0.01110802]
[1767417668074,0.01110728,90031.0,90026.0,0.0111079]
[1767417669827,0.0111074,90030.0,90025.0,0.01110802]
[1767417670007,0.01110728,90031.0,90025.0,0.01110802]
[1767417670814,0.01110728,90031.0,90026.0,0.0111079]
[1767417671020,0.04442536,90032.0,90026.0,0.0111079]
[1767417671383,0.07776261,90033.0,90026.0,0.0111079]
[1767417671639,0.01110728,90031.0,90026.0,0.0111079]
[1767417672139,0.0111074,90030.0,90025.0,0.01110802]
[1767417672564,0.02222703,90033.0,90028.0,0.01110765]
[1767417672767,0.01110716,90032.0,90027.0,0.01110777]
[1767417672978,0.01112,90033.0,90030.0,0.0111074]
[1767417673316,0.01112,90033.0,90027.0,0.0666462]
[1767417673751,0.01112,90033.0,90028.0,0.01110765]
[1767417674349,0.01112,90033.0,90027.0,0.01110777]
[1767417674350,0.01110716,90032.0,90027.0,0.01110777]
[1767417675698,0.0099964,90032.0,90028.0,0.01110765]
[1767417675892,0.02222703,90033.0,90027.0,0.01110777]
[1767417676107,0.01110716,90032.0,90027.0,0.01110777]
[1767417676486,0.01112,90033.0,90029.0,0.01110753]
[1767417677027,0.00337268,90033.0,90030.0,0.06664392]
[1767417679195,0.00035985,90040.0,90036.0,0.01110666]
[1767417679417,0.01112,90039.0,90035.0,0.01110679]
[1767417679820,0.01112,90039.0,90036.0,0.01110666]
[1767417680030,0.01112,90039.0,90035.0,0.01110679]
[1767417680228,0.01112,90039.0,90036.0,0.01110666]
[1767417682053,0.01112,90039.0,90035.0,0.01110679]
[1767417684551,0.02222629,90039.0,90034.0,0.01110691]
[1767417684778,0.01112,90039.0,90035.0,0.01110679]
[1767417686529,0.02222629,90039.0,90034.0,0.01110691]
[1767417687178,0.011077,90039.0,90036.0,0.01110666]
[1767417687380,0.011077,90039.0,90035.0,0.01110679]
[1767417688179,0.011077,90039.0,90036.0,0.01110666]
[1767417688379,0.011077,90039.0,90036.0,0.05820607]
[1767417688595,0.011077,90039.0,90036.0,0.01110666]
[1767417690287,0.01103311,90039.0,90036.0,0.0666399]
[1767417690653,0.01103311,90039.0,90036.0,0.11380162]
[1767417690844,0.01103311,90039.0,90036.0,0.04616272]
[1767417691453,0.01103311,90039.0,90036.0,0.05726938]
[1767417692969,0.05552735,90046.0,90038.0,0.04716172]
[1767417692970,0.01110543,90046.0,90038.0,0.04716172]
[1767417693210,0.01112,90045.0,90042.0,0.04716172]
[1767417693388,0.01112,90045.0,90039.0,0.04716172]
[1767417693742,0.0111058,90043.0,90038.0,4.389e-05]
[1767417693870,0.01110605,90041.0,90038.0,4.389e-05]
[1767417694071,0.06663655,90041.0,90038.0,4.389e-05]
[1767417695887,0.01112,90040.0,90038.0,4.389e-05]
[1767417696089,0.03887655,90041.0,90038.0,4.389e-05]
[1767417696696,0.0499826,90041.0,90038.0,4.389e-05]
[1767417696902,0.02222605,90041.0,90038.0,4.389e-05]
[1767417698654,0.07775673,90041.0,90038.0,4.389e-05]
[1767417698988,0.05553127,90040.0,90038.0,4.389e-05]
[1767417699226,0.01110666,90036.0,90029.0,0.06664471]
[1767417699608,0.01110666,90036.0,90032.0,0.01110716]
[1767417699816,0.01110654,90037.0,90032.0,0.01110716]
[1767417701787,0.01110654,90037.0,90030.0,0.05553664]
[1767417701788,0.01110666,90036.0,90030.0,0.0111074]
[1767417702323,0.01110666,90036.0,90032.0,0.01110716]
[1767417702871,0.01110629,90039.0,90036.0,0.000999]
[1767417703214,0.0666382,90039.0,90036.0,0.000999]
[1767417703415,0.01110654,90037.0,90032.0,0.01110716]
[1767417704236,0.01110666,90036.0,90031.0,0.06664329]
[1767417704442,0.01110679,90035.0,90030.0,0.0111074]
[1767417704638,0.01110666,90036.0,90032.0,0.01110716]
[1767417705114,0.01110654,90037.0,90032.0,0.01110716]
[1767417705311,0.01110654,90037.0,90036.0,0.000999]
[1767417705513,0.01110666,90036.0,90031.0,0.01110728]
[1767417706679,0.01110666,90036.0,90032.0,0.01110716]
[1767417707613,0.01110642,90038.0,90033.0,0.01110703]
[1767417707775,0.01110654,90037.0,90032.0,0.01110716]
[1767417709533,0.01110642,90038.0,90033.0,0.01110703]
[1767417709929,0.01110642,90038.0,90034.0,0.01110691]
[1767417710504,0.07775665,90041.0,90035.0,0.01110679]
[1767417710907,0.01110617,90040.0,90035.0,0.01110679]
[1767417711443,0.01110629,90039.0,90034.0,0.01110691]
[1767417712930,0.01110654,90037.0,90028.0,0.05553794]
[1767417713118,0.01110666,90036.0,90030.0,0.0111074]
[1767417713316,0.01110666,90036.0,90031.0,0.01110728]
[1767417713722,0.01110679,90035.0,90031.0,0.01110728]
[1767417714175,0.01110679,90035.0,90030.0,0.0111074]
[1767417714762,0.01110679,90035.0,90031.0,0.01110728]
[1767417714964,0.01110679,90035.0,90030.0,0.0111074]
[1767417715358,0.01110691,90034.0,90029.0,0.01110753]
[1767417715558,0.01106282,90035.0,90030.0,0.0111074]
[1767417717109,0.01106282,90035.0,90031.0,0.01110728]
[1767417717681,0.01106282,90035.0,90030.0,0.0111074]
[1767417719718,0.01110666,90036.0,90031.0,0.01110728]
[1767417720742,0.01110679,90035.0,90031.0,0.01110728]
[1767417721438,0.01110666,90036.0,90031.0,0.01110728]
[1767417722145,0.01110654,90037.0,90030.0,0.06664419]
[1767417723101,0.01110666,90036.0,90031.0,0.01110728]
[1767417723302,0.01106488,90036.0,90031.0,0.01110728]
[1767417723940,0.05553105,90040.0,90036.0,0.000999]
[1767417724141,0.01110654,90037.0,90033.0,0.01110703]
[1767417724687,0.01110654,90037.0,90032.0,0.01110716]
[1767417725053,0.01110666,90036.0,90032.0,0.01110716]
[1767417725268,0.01110654,90037.0,90032.0,0.01110716]
[1767417725817,0.01110642,90038.0,90033.0,0.01110703]
[1767417726223,0.01110642,90038.0,90034.0,0.01110691]
[1767417726945,0.01110642,90038.0,90033.0,0.01110703]
[1767417727346,0.01110654,90037.0,90033.0,0.01110703]
[1767417727669,0.01110654,90037.0,90031.0,0.01110728]
[1767417727872,0.01110679,90035.0,90030.0,0.0111074]
[1767417728029,0.01110654,90037.0,90032.0,0.01110716]
[1767417728226,0.01110666,90036.0,90031.0,0.01110728]
[1767417728841,0.01110703,90033.0,90028.0,0.01110765]
[1767417729039,0.01110703,90033.0,90029.0,0.01110753]
[1767417729247,0.01110691,90034.0,90029.0,0.01110753]
[1767417729595,0.01110691,90034.0,90028.0,0.01110765]
[1767417729596,0.01110703,90033.0,90028.0,0.01110765]
[1767417730542,0.01110703,90033.0,90029.0,0.01110753]
[1767417730762,0.01110716,90032.0,90027.0,0.01110777]
[1767417730976,0.01110703,90033.0,90028.0,0.01110765]
[1767417731176,0.01110703,90033.0,90026.0,0.05553928]
[1767417731177,0.05553585,90032.0,90024.0,0.01110814]
[1767417731346,0.0111074,90030.0,90026.0,0.0111079]
[1767417731552,0.01110728,90031.0,90027.0,0.01110777]
[1767417732153,0.01110728,90031.0,90026.0,0.0111079]
[1767417732350,0.01110728,90031.0,90027.0,0.01110777]
[1767417733154,0.01110716,90032.0,90027.0,0.01110777]
[1767417734602,0.0111074,90030.0,90025.0,0.01110802]
[1767417735222,0.01110716,90032.0,90027.0,0.01110777]
[1767417738386,0.01110703,90033.0,90028.0,0.01110765]
[1767417738587,0.06664027,90036.0,90030.0,0.0111074]
[1767417738790,0.01110666,90036.0,90033.0,0.000999]
[1767417739706,0.01110679,90035.0,90030.0,0.0111074]
[1767417740102,0.01110666,90036.0,90031.0,0.01110728]
[1767417740300,0.01110703,90033.0,90028.0,0.01110765]
[1767417740504,0.01110716,90032.0,90027.0,0.01110777]
[1767417741518,0.04639879,90033.0,90029.0,0.01110753]
[1767417741988,0.01110691,90034.0,90029.0,0.01110753]
[1767417742668,0.01110703,90033.0,90028.0,0.01110765]
[1767417742830,0.01110691,90034.0,90029.0,0.01110753]
[1767417745820,0.0666412,90035.0,90030.0,0.0111074]
[1767417746212,0.01110679,90035.0,90030.0,0.0111074]
[1767417746955,0.01110691,90034.0,90030.0,0.0111074]
[1767417747160,0.01110679,90035.0,90034.0,0.000999]
[1767417747559,0.01110679,90035.0,90030.0,0.0111074]
[1767417747560,0.01110691,90034.0,90030.0,0.0111074]
[1767417747755,0.01110691,90034.0,90029.0,0.01110753]
[1767417748192,0.01110691,90034.0,90030.0,0.0111074]
[1767417748571,0.01110679,90035.0,90030.0,0.0111074]
[1767417748988,0.27281798,90040.0,90032.0,0.01110716]
[1767417749191,0.01110666,90036.0,90031.0,0.01110728]
[1767417750014,0.01110666,90036.0,90032.0,0.01110716]
[1767417750267,0.01110642,90038.0,90033.0,0.01110703]
[1767417750434,0.01110629,90039.0,90036.0,0.000999]
[1767417750801,0.06663892,90038.0,90032.0,0.01110716]
[1767417750985,0.01110642,90038.0,90033.0,0.01110703]
[1767417751347,0.01110642,90038.0,90033.0,0.01146688]
[1767417751574,0.01110629,90039.0,90034.0,0.01110691]
[1767417751801,0.01110629,90039.0,90035.0,0.01110679]
[1767417752351,0.01110629,90039.0,90034.0,0.01110691]
[1767417752669,0.01110642,90038.0,90034.0,0.01110691]
[1767417752884,0.01110629,90039.0,90034.0,0.01110691]
[1767417753285,0.01112,90038.0,90034.0,0.01110691]
[1767417753482,0.02222642,90038.0,90033.0,0.01146688]
[1767417753688,0.01112,90038.0,90034.0,0.01110691]
[1767417754231,0.02222642,90038.0,90034.0,0.01110691]
[1767417754704,0.01112,90038.0,90034.0,0.01110691]
[1767417754933,0.01112,90038.0,90035.0,0.01110679]
[1767417755054,0.01112,90038.0,90034.0,0.01110691]
[1767417755271,0.01112,90038.0,90035.0,0.01110679]
[1767417759919,0.01112,90038.0,90034.0,0.01110691]
[1767417761642,0.01112,90038.0,90035.0,0.01110679]
[1767417762211,0.01112,90038.0,90034.0,0.01110691]
[1767417763026,0.01112,90038.0,90035.0,0.01110679]
[1767417763473,0.01112,90038.0,90035.0,0.06664069]
[1767417763764,0.01112,90038.0,90035.0,0.01110679]
[1767417763765,0.010121,90038.0,90035.0,0.01110679]
[1767417765131,0.01110617,90040.0,90036.0,0.01110666]
[1767417765132,0.01112,90037.0,90036.0,0.01110666]
[1767417765466,0.01107847,90037.0,90036.0,0.01110666]
[1767417765634,0.01107847,90037.0,90035.0,0.01110679]
[1767417767671,0.01112,90037.0,90035.0,0.01110679]
[1767417769591,0.01112,90037.0,90035.0,0.06664029]
[1767417770414,0.01110592,90042.0,90037.0,0.01110654]
[1767417770618,0.01112,90041.0,90037.0,0.01110654]
[1767417770920,0.02222605,90041.0,90036.0,0.01110666]
[1767417771803,0.01110617,90040.0,90035.0,0.01110679]
[1767417772003,0.02222605,90041.0,90036.0,0.01110666]
[1767417772299,0.01110605,90041.0,90036.0,0.01110666]
[1767417772463,0.01112,90040.0,90036.0,0.01110666]
[1767417773602,0.02222617,90040.0,90035.0,0.01110679]
[1767417773786,0.02222617,90040.0,90036.0,0.01110666]
[1767417774553,0.01112,90040.0,90036.0,0.01110666]
[1767417775484,0.02222617,90040.0,90035.0,0.01110679]
[1767417775853,0.02222617,90040.0,90036.0,0.01110666]
[1767417776056,0.01110629,90039.0,90034.0,0.01110691]
[1767417777219,0.02222617,90040.0,90035.0,0.01110679]
[1767417777421,0.01110642,90038.0,90033.0,0.01146688]
[1767417778047,0.01110642,90038.0,90034.0,0.01110691]
[1767417778282,0.000999,90034.0,90033.0,0.00035985]
[1767417778582,0.01110654,90037.0,90033.0,0.00035985]
[1767417779322,0.01110642,90038.0,90033.0,0.01146688]
[1767417779664,0.01112,90037.0,90033.0,0.00035985]
[1767417780222,0.01110666,90036.0,90033.0,0.00035985]
[1767417780570,0.01110666,90036.0,90033.0,8.5e-07]
[1767417781368,0.05553431,90035.0,90033.0,8.5e-07]
[1767417784399,0.05549211,90035.0,90033.0,8.5e-07]
[1767417785292,0.05544949,90035.0,90033.0,8.5e-07]
[1767417786575,0.01110753,90029.0,90024.0,0.01110814]
[1767417786987,0.01110765,90028.0,90023.0,0.02222827]
[1767417787808,0.01110753,90029.0,90024.0,0.01110814]
[1767417788009,0.01110765,90028.0,90023.0,0.02222827]
[1767417788260,0.0111074,90030.0,90025.0,0.01110802]
[1767417788741,0.01110765,90028.0,90023.0,0.02222827]
[1767417789376,0.0111074,90030.0,90025.0,0.01110802]
[1767417791944,0.01110753,90029.0,90024.0,0.01110814]
[1767417792250,0.01110753,90029.0,90025.0,0.01110802]
[1767417792674,0.01110753,90029.0,90024.0,0.01110814]
[1767417793081,0.0111074,90030.0,90026.0,0.0111079]
[1767417793295,0.0111074,90030.0,90025.0,0.01110802]
[1767417794346,0.06664395,90031.0,90026.0,0.0111079]
[1767417794646,0.0111074,90030.0,90025.0,0.01110802]
[1767417795376,0.01110753,90029.0,90024.0,0.01110814]
[1767417797064,0.01110716,90032.0,90029.0,0.000359]
[1767417797242,0.01110703,90033.0,90028.0,0.01110765]
[1767417797442,0.01106339,90033.0,90029.0,0.01110753]
[1767417797833,0.01110716,90032.0,90028.0,0.01110765]
[1767417798034,0.01106339,90033.0,90028.0,0.01110765]
[1767417798239,0.01110691,90034.0,90029.0,0.01110753]
[1767417798459,0.01110691,90034.0,90030.0,0.0111074]
[1767417798663,0.06664106,90035.0,90030.0,0.0111074]
[1767417798905,0.01110691,90034.0,90029.0,0.01110753]
[1767417799844,0.06664106,90035.0,90030.0,0.0111074]
[1767417800246,0.01110691,90034.0,90029.0,0.01110753]
[1767417800817,0.01110679,90035.0,90030.0,0.0111074]
[1767417801475,0.01110666,90036.0,90031.0,0.01110728]
[1767417803395,0.01110679,90035.0,90030.0,0.0111074]
[1767417804565,0.000999,90030.0,90029.0,0.01110753]
[1767417804926,0.01110679,90035.0,90029.0,0.01110753]
[1767417805135,0.01110679,90035.0,90029.0,0.06664474]
[1767417805347,0.01110679,90035.0,90029.0,0.01110753]
[1767417805588,0.01110666,90036.0,90030.0,0.0111074]
[1767417806072,0.01110666,90036.0,90031.0,0.01110728]
[1767417806302,0.02222654,90037.0,90032.0,0.01110716]
[1767417806541,0.01110666,90036.0,90031.0,0.01110728]
[1767417806734,0.01146654,90036.0,90031.0,0.01110728]
[1767417807534,0.00035988,90036.0,90032.0,0.01110716]
[1767417808036,0.01146654,90036.0,90031.0,0.01110728]
[1767417808736,0.01110679,90035.0,90030.0,0.0111074]
[1767417808879,0.01146654,90036.0,90031.0,0.01110728]
[1767417811711,0.01146654,90036.0,90031.0,0.01110728]
[1767417813348,0.05553395,90035.0,90029.0,0.01110753]
[1767417813542,0.01110691,90034.0,90030.0,0.0111074]
[1767417813749,0.01110691,90034.0,90029.0,0.01110753]
[1767417813927,0.01110679,90035.0,90029.0,0.01110753]
[1767417814460,0.06700025,90036.0,90029.0,0.01110753]
[1767417814761,0.01110679,90035.0,90029.0,0.01010853]
[1767417814928,0.01110679,90035.0,90030.0,0.0111074]
[1767417816348,0.01110728,90031.0,90026.0,0.0111079]
[1767417817644,0.01110716,90032.0,90027.0,0.01110777]
[1767417817843,0.01110703,90033.0,90027.0,0.01110777]
[1767417818989,0.01110716,90032.0,90027.0,0.01110777]
[1767417820160,0.04830428,90028.0,90010.0,0.04735003]
[1767417820359,0.01110827,90023.0,90012.0,0.01110962]
[1767417820595,0.01110827,90023.0,90017.0,0.01110901]
[1767417821229,0.01110814,90024.0,90019.0,0.01110876]
[1767417821435,0.01110802,90025.0,90020.0,0.01110864]
[1767417821582,0.01110802,90025.0,90019.0,0.01110876]
[1767417821583,0.01110814,90024.0,90019.0,0.01110876]
[1767417823092,0.01110827,90023.0,90018.0,0.01110888]
[1767417823458,0.01110802,90025.0,90019.0,0.0666525]
[1767417824833,0.01110814,90024.0,90020.0,0.01110864]
[1767417824993,0.01110802,90025.0,90020.0,0.01110864]
[1767417825694,0.01110814,90024.0,90019.0,0.01110876]
[1767417826095,0.01110777,90027.0,90019.0,0.01110876]
[1767417826299,0.01110814,90024.0,90020.0,0.01110864]
[1767417826636,0.01110802,90025.0,90020.0,0.01110864]
[1767417826840,0.0111079,90026.0,90021.0,0.01110851]
[1767417827232,0.01110802,90025.0,90020.0,0.01110864]
[1767417827422,0.01110802,90025.0,90021.0,0.01110851]
[1767417827741,0.01110814,90024.0,90019.0,0.01110876]
[1767417827919,0.01110802,90025.0,90019.0,0.01110876]
[1767417827920,0.01110802,90025.0,90020.0,0.01110864]
[1767417828986,0.01110814,90024.0,90019.0,0.01110876]
[1767417830081,0.01110802,90025.0,90020.0,0.01110864]
[1767417831858,0.01110814,90024.0,90019.0,0.01110876]
[1767417832176,0.01110802,90025.0,90019.0,0.01110876]
[1767417833026,0.01110814,90024.0,90019.0,0.01110876]
[1767417833925,0.01110802,90025.0,90020.0,0.01110864]
[1767417835116,0.01110814,90024.0,90019.0,0.01110876]
[1767417837152,0.01110814,90024.0,90020.0,0.01110864]
[1767417837310,0.000999,90020.0,90018.0,0.01110888]
[1767417837715,0.01110827,90023.0,90018.0,0.01110888]
[1767417838572,0.01110839,90022.0,90017.0,0.01110901]
[1767417838758,0.01110839,90022.0,90018.0,0.01110888]
[1767417839102,0.01110827,90023.0,90018.0,0.01110888]
[1767417840361,0.01110839,90022.0,90017.0,0.01110901]
[1767417840668,0.01110827,90023.0,90018.0,0.01110888]
[1767417840861,0.01110802,90025.0,90020.0,0.01110864]
[1767417841766,0.06665887,90028.0,90020.0,0.01110864]
[1767417842353,0.01110802,90025.0,90020.0,0.01110864]
[1767417842707,0.01110814,90024.0,90019.0,0.06665209]
[1767417842836,0.01110814,90024.0,90020.0,0.01110864]
[1767417843174,0.01110802,90025.0,90020.0,0.01110864]
[1767417845039,0.01110814,90024.0,90019.0,0.01110876]
[1767417848290,0.01110802,90025.0,90020.0,0.01110864]
[1767417852071,0.01110814,90024.0,90019.0,0.01110876]
[1767417852569,0.01110814,90024.0,90020.0,0.01110864]
[1767417853164,0.01110802,90025.0,90020.0,0.01110864]
[1767417854231,0.01110802,90025.0,90021.0,0.01110851]
[1767417854432,0.01110802,90025.0,90020.0,0.01110864]
[1767417855220,0.0111079,90026.0,90020.0,0.01110864]
[1767417855555,0.01110777,90027.0,90020.0,0.01110864]
[1767417856802,0.01110777,90027.0,90021.0,0.01110851]
[1767417857341,0.0111079,90026.0,90021.0,0.01110851]
[1767417860394,0.01110802,90025.0,90020.0,0.01110864]
[1767417861316,0.01110814,90024.0,90020.0,0.01110864]
[1767417861479,0.01110814,90024.0,90019.0,0.06665207]
[1767417861678,0.01110827,90023.0,90018.0,0.01110888]
[1767417861919,0.01110827,90023.0,90019.0,0.01110876]
[1767417862365,0.01110814,90024.0,90019.0,0.01110876]
[1767417863021,0.01110827,90023.0,90019.0,0.01110876]
[1767417863563,0.01110814,90024.0,90019.0,0.01110876]
[1767417863738,0.01110802,90025.0,90020.0,0.01110864]
[1767417863919,0.0111079,90026.0,90022.0,0.01110839]
[1767417864126,0.0111079,90026.0,90021.0,0.01110851]
[1767417864331,0.01110802,90025.0,90020.0,0.01110864]
[1767417864646,0.0111079,90026.0,90021.0,0.01110851]
[1767417865071,0.01110802,90025.0,90020.0,0.01110864]
[1767417866022,0.01110814,90024.0,90020.0,0.01110864]
[1767417866425,0.01110802,90025.0,90020.0,0.01110864]
[1767417867978,0.01110814,90024.0,90019.0,0.01110876]
[1767417868179,0.01110802,90025.0,90020.0,0.01110864]
[1767417869243,0.01110814,90024.0,90019.0,0.01110876]
[1767417869705,0.0111079,90026.0,90020.0,0.01110864]
[1767417870243,0.0111079,90026.0,90021.0,0.01110851]
[1767417871031,0.0111079,90026.0,90022.0,0.01110839]
[1767417871610,0.0111079,90026.0,90021.0,0.01110851]
[1767417873243,0.01110777,90027.0,90022.0,0.01110839]
[1767417873511,0.0111079,90026.0,90021.0,0.01110851]
[1767417874077,0.0111079,90026.0,90020.0,0.01110864]
[1767417875189,0.01110777,90027.0,90023.0,0.01110827]
[1767417875774,0.01110777,90027.0,90022.0,0.01110839]
[1767417876383,0.0111079,90026.0,90021.0,0.01110851]
[1767417876585,0.01110777,90027.0,90022.0,0.01110839]
[1767417877647,0.02222765,90028.0,90023.0,0.01110827]
[1767417878147,0.02222765,90028.0,90024.0,0.01110814]
[1767417878913,0.01112,90028.0,90024.0,0.01110814]
[1767417880922,0.01112,90028.0,90025.0,0.06664814]
[1767417881157,0.01110716,90032.0,90027.0,0.01110777]
[1767417881331,0.01112,90030.0,90027.0,0.01110777]
[1767417881487,0.01110703,90033.0,90027.0,0.01110777]
[1767417881692,0.01112,90032.0,90027.0,0.01110777]
[1767417882230,0.01110728,90031.0,90027.0,0.01110777]
[1767417882409,0.02222716,90032.0,90027.0,0.01110777]
[1767417883023,0.07004859,90032.0,90028.0,0.01110765]
[1767417883705,0.07004859,90032.0,90027.0,0.01110777]
[1767417883912,0.01110728,90031.0,90026.0,0.0111079]
[1767417884732,0.0111074,90030.0,90025.0,0.01110802]
[1767417884914,0.01110728,90031.0,90025.0,0.01110802]
[1767417885358,0.01110753,90029.0,90024.0,0.01110814]
[1767417885520,0.01110765,90028.0,90023.0,0.01110827]
[1767417885837,0.0111074,90030.0,90025.0,0.01110802]
[1767417885993,0.01110753,90029.0,90024.0,0.01110814]
[1767417886959,0.01110765,90028.0,90023.0,0.01110827]
[1767417887895,0.01110753,90029.0,90024.0,0.01110814]
[1767417888708,0.01110765,90028.0,90023.0,0.01110827]
[1767417889113,0.0111079,90026.0,90021.0,0.01110851]
[1767417889408,0.0111079,90026.0,90020.0,0.05554283]
[1767417889409,0.01110814,90024.0,90020.0,0.01110864]
[1767417889614,0.01110839,90022.0,90017.0,0.01110901]
[1767417889759,0.01110802,90025.0,90020.0,0.01110864]
[1767417889959,0.0111079,90026.0,90021.0,0.01110851]
[1767417890203,0.01110777,90027.0,90018.0,0.01110888]
[1767417890411,0.0111079,90026.0,90020.0,0.01110864]
[1767417890610,0.01110802,90025.0,90020.0,0.01110864]
[1767417890821,0.0111079,90026.0,90022.0,0.01110839]
[1767417891160,0.01110777,90027.0,90022.0,0.01110839]
[1767417892510,0.01110827,90023.0,90018.0,0.01110888]
[1767417892686,0.01110814,90024.0,90018.0,0.01110888]
[1767417893689,0.01110814,90024.0,90019.0,0.01110876]
[1767417895041,0.01110814,90024.0,90020.0,0.01110864]
[1767417895824,0.01110777,90027.0,90021.0,0.01110851]
[1767417896002,0.01110765,90028.0,90024.0,0.01110814]
[1767417896227,0.02222753,90029.0,90024.0,0.01110814]
[1767417896408,0.01110765,90028.0,90023.0,0.01110827]
[1767417896609,0.000999,90024.0,90023.0,0.01110827]
[1767417896811,0.01110765,90028.0,90023.0,0.01110827]
[1767417897768,0.01110765,90028.0,90024.0,0.01110814]
[1767417898586,0.02222753,90029.0,90024.0,0.01110814]
[1767417899674,0.01112,90029.0,90025.0,0.01110802]
[1767417899861,0.02222753,90029.0,90023.0,0.01110827]
[1767417900038,0.02222753,90029.0,90024.0,0.01110814]
[1767417900233,0.01110765,90028.0,90023.0,0.01110827]
[1767417900795,0.01110753,90029.0,90024.0,0.01110814]
[1767417901336,0.0111074,90030.0,90025.0,0.01110802]
[1767417901740,0.01110753,90029.0,90024.0,0.01110814]
[1767417902963,0.0111074,90030.0,90024.0,0.01110814]
[1767417903170,0.0111074,90030.0,90025.0,0.01110802]
[1767417903630,0.05553695,90031.0,90025.0,0.01110802]
[1767417903838,0.01112,90035.0,90031.0,0.01110728]
[1767417904108,0.01112,90035.0,90032.0,0.01110716]
[1767417905575,0.01112,90035.0,90033.0,0.05553519]
[1767417909101,0.0566223,90042.0,90033.0,0.05553519]
[1767417909102,0.04551638,90042.0,90033.0,0.01110703]
[1767417909298,0.01112,90041.0,90033.0,0.01110703]
[1767417909498,0.01110617,90040.0,90035.0,0.01110679]
[1767417909699,0.000999,90035.0,90033.0,0.01110703]
[1767417909900,0.01110629,90039.0,90031.0,0.01110728]
[1767417909901,0.01110654,90037.0,90031.0,0.01110728]
[1767417910125,0.01110642,90038.0,90032.0,0.01110716]
[1767417910487,0.01110629,90039.0,90034.0,0.01110691]
[1767417910687,0.05662255,90040.0,90035.0,0.01010779]
[1767417911144,0.01110642,90038.0,90034.0,0.01110691]
[1767417911540,0.01110642,90038.0,90033.0,0.01110703]
[1767417911740,0.01110629,90039.0,90034.0,0.01110691]
[1767417912545,0.01110629,90039.0,90035.0,0.01110679]
[1767417913446,0.05662255,90040.0,90035.0,0.01110679]
[1767417914975,0.04551638,90040.0,90036.0,0.01110666]
[1767417915172,0.04551638,90040.0,90037.0,0.01110654]
[1767417915368,0.05662292,90037.0,90032.0,0.01110716]
[1767417915570,0.05662292,90037.0,90029.0,0.01110753]
[1767417915774,0.05553374,90036.0,90029.0,0.01110753]
[1767417916009,0.01110679,90035.0,90029.0,0.01110753]
[1767417916202,0.06664185,90034.0,90027.0,0.06664621]
[1767417916413,0.06664185,90034.0,90029.0,0.01110753]
[1767417916414,0.01110691,90034.0,90029.0,0.01110753]
[1767417916574,0.01110703,90033.0,90028.0,0.01110765]
[1767417917304,0.01110716,90032.0,90027.0,0.01110777]
[1767417917845,0.06664205,90034.0,90028.0,0.01110765]
[1767417918931,0.01110703,90033.0,90028.0,0.01110765]
[1767417919651,0.01110703,90033.0,90029.0,0.01110753]
[1767417919821,0.01110703,90033.0,90028.0,0.01110765]
[1767417920026,0.01110703,90033.0,90029.0,0.01110753]
[1767417920593,0.06664205,90034.0,90029.0,0.01110753]
[1767417920834,0.01110691,90034.0,90030.0,0.0111074]
[1767417921285,0.01110679,90035.0,90030.0,0.0111074]
[1767417922227,0.11215604,90037.0,90030.0,0.0111074]
[1767417922433,0.04551638,90035.0,90031.0,0.01110728]
[1767417922637,0.04551638,90035.0,90030.0,0.0111074]
[1767417922841,0.04551638,90035.0,90031.0,0.01110728]
[1767417923945,0.04551638,90035.0,90032.0,0.01110716]
[1767417924141,0.05662292,90037.0,90032.0,0.01110716]
[1767417924659,0.04551638,90037.0,90033.0,0.01110703]
[1767417924866,0.06774267,90039.0,90037.0,0.000999]
[1767417925111,0.01110642,90038.0,90033.0,0.01110703]
[1767417925694,0.01110642,90038.0,90034.0,0.01110691]
[1767417925897,0.05663638,90039.0,90035.0,0.01110679]
[1767417926925,0.05663638,90039.0,90036.0,0.01110666]
[1767417927768,0.05663638,90039.0,90035.0,0.01110679]
[1767417928645,0.06774267,90039.0,90034.0,0.01110691]
[1767417929369,0.05663638,90039.0,90035.0,0.01110679]
[1767417929652,0.01112,90039.0,90035.0,0.01110679]
[1767417929879,0.05694523,90039.0,90036.0,0.01110666]
[1767417930054,0.05694523,90039.0,90035.0,0.01110679]
[1767417930388,0.05694523,90039.0,90034.0,0.01110691]
[1767417930757,0.06805152,90039.0,90034.0,0.01110691]
[1767417931479,0.05694523,90039.0,90035.0,0.01110679]
[1767417931682,0.04582523,90037.0,90034.0,0.01110691]
[1767417931834,0.04482623,90037.0,90034.0,0.01110691]
[1767417932021,0.06805152,90039.0,90034.0,0.01110691]
[1767417932222,0.06805152,90039.0,90035.0,0.01110679]
[1767417932464,0.05694523,90039.0,90035.0,0.01110679]
[1767417935038,0.000999,90035.0,90032.0,0.01110716]
[1767417935282,0.01110642,90038.0,90032.0,0.01110716]
[1767417935883,0.01110654,90037.0,90033.0,0.01110703]
[1767417936080,0.06805152,90039.0,90034.0,0.01110691]
[1767417936692,0.05693165,90038.0,90033.0,0.01110703]
[1767417937133,0.05693165,90038.0,90034.0,0.01110691]
[1767417937739,0.04582523,90038.0,90034.0,0.01110691]
[1767417938278,0.04582523,90038.0,90035.0,0.01110679]
[1767417938588,0.04582523,90038.0,90034.0,0.01110691]
[1767417939215,0.000999,90034.0,90032.0,0.01110716]
[1767417939826,0.01110666,90036.0,90032.0,0.01110716]
[1767417940024,0.04582523,90037.0,90033.0,0.01110703]